bitfinex-derivatives/quotes_SOLF0:USTF0_20220110
["timestamp","ask_amount","ask_price","bid_price","bid_amount"]
[1641810496933,12.54991594,141.65,141.64,2.40142095]
[1641810497133,16.54991594,141.65,141.64,2.40142095]
[1641810497635,20.54856239,141.65,141.64,0.79972442]
[1641810498132,20.54856239,141.65,141.62,0.79972442]
[1641810498334,9.64816167,141.64,141.62,0.79972442]
[1641810498533,13.64680812,141.64,141.61,0.79972442]
[1641810499036,3.99864645,141.63,141.61,0.79972442]
[1641810499439,3.99864645,141.63,141.62,2.40188415]
[1641810499841,3.99864645,141.63,141.62,3.20160857]
[1641810500243,9.64816167,141.64,141.62,3.20160857]
[1641810500844,9.64816167,141.64,141.63,0.79972442]
[1641810501244,13.64696793,141.64,141.63,0.79972442]
[1641810501444,9.64696793,141.64,141.63,0.79972442]
[1641810501647,9.64696793,141.64,141.62,5.924]
[1641810501843,3.99880626,141.64,141.62,5.924]
[1641810502044,8.77630991,141.68,141.63,0.79972442]
[1641810502445,2.0,141.68,141.63,0.79972442]
[1641810502946,2.0,141.68,141.64,2.40243438]
[1641810503546,2.0,141.68,141.65,0.79972442]
[1641810503746,2.0,141.68,141.65,8.11572442]
[1641810503948,2.0,141.68,141.65,23.05576552]
[1641810504150,2.0,141.68,141.66,0.79972442]
[1641810504748,2.0,141.68,141.67,2.40243438]
[1641810505247,0.0001,141.68,141.67,3.2021588]
[1641810505849,3.99678135,141.72,141.67,3.2021588]
[1641810505850,1.99698135,141.72,141.67,3.2021588]
[1641810506049,1.99698135,141.75,141.67,7.2020588]
[1641810506449,1.99698135,141.75,141.67,2.40243438]
[1641810506750,1.99698135,141.75,141.68,2.40243438]
[1641810506949,1.99698135,141.75,141.68,23.15047548]
[1641810507149,1.99698135,141.75,141.68,34.20380521]
[1641810507549,1.99698135,141.75,141.69,4.7991743]
[1641810507750,1.99698135,141.75,141.7,5.7639]
[1641810507952,1.99698135,141.78,141.7,2.5632743]
[1641810508149,1.99698135,141.78,141.7,6.5631743]
[1641810508350,1.99698135,141.8,141.71,0.7992743]
[1641810508551,1.99698135,141.8,141.71,12.4151743]
[1641810508953,1.99698135,141.8,141.71,10.81770868]
[1641810509353,1.99698135,141.8,141.72,0.7992743]
[1641810509552,2.0,141.75,141.72,0.7992743]
[1641810510151,2.0,141.75,141.72,3.20170868]
[1641810510852,2.0,141.75,141.73,0.7992743]
[1641810511152,2.0,141.75,141.73,3.20170868]
[1641810511651,2.0,141.75,141.74,0.7992743]
[1641810512753,2.0,141.75,141.72,0.7992743]
[1641810513354,2.0,141.75,141.73,2.38998309]
[1641810514154,2.0,141.75,141.74,0.7992743]
[1641810514654,5.9965229,141.75,141.74,0.7992743]
[1641810515052,2.0,141.75,141.74,0.7992743]
[1641810515356,5.9965229,141.75,141.72,0.7992743]
[1641810515953,3.9965229,141.74,141.72,0.7992743]
[1641810517255,2.0,141.75,141.72,0.7992743]
[1641810517455,2.0,141.75,141.72,8.4492743]
[1641810518456,2.0,141.75,141.73,0.7992743]
[1641810519159,2.0,141.75,141.72,0.7992743]
[1641810520357,3.9963509,141.74,141.72,0.7992743]
[1641810520860,2.0,141.75,141.72,0.7992743]
[1641810524263,5.64416949,141.74,141.72,0.7992743]
[1641810524464,22.71999004,141.74,141.72,0.7992743]
[1641810524663,4.0,141.73,141.66,14.9400411]
[1641810525065,5.64416949,141.74,141.66,18.9399411]
[1641810525265,2.0,141.75,141.67,8.81792727]
[1641810525464,2.0,141.75,141.67,7.05392727]
[1641810525968,3.99656468,141.74,141.68,0.79931294]
[1641810526167,3.99656468,141.74,141.68,3.18587578]
[1641810526970,3.99656468,141.74,141.69,0.79931294]
[1641810527171,3.99656468,141.74,141.69,10.19031294]
[1641810527570,3.99656468,141.74,141.69,9.391]
[1641810528071,3.99656468,141.74,141.7,0.79931294]
[1641810532974,3.99656468,141.74,141.71,2.39705321]
[1641810533374,3.99656468,141.74,141.72,0.79931294]
[1641810534079,3.99656468,141.74,141.72,1.294e-05]
[1641810534277,7.99656468,141.74,141.68,14.9400411]
[1641810534480,4.0,141.73,141.68,14.9400411]
[1641810534679,16.31195988,141.74,141.67,16.76083828]
[1641810534680,16.3153952,141.74,141.67,31.70087938]
[1641810534881,4.0,141.73,141.67,31.70087938]
[1641810535381,4.0,141.73,141.67,16.76083828]
[1641810535679,3.99732644,141.72,141.68,0.79946529]
[1641810537280,3.99732644,141.73,141.68,0.79946529]
[1641810539183,3.99732644,141.74,141.68,0.79946529]
[1641810539385,3.99732644,141.74,141.68,8.07546529]
[1641810539586,3.99732644,141.74,141.68,23.01550639]
[1641810539986,3.99732644,141.74,141.69,0.79946529]
[1641810542193,3.99732644,141.74,141.68,0.79946529]
[1641810543595,4.0,141.72,141.68,0.79946529]
[1641810543994,3.99732644,141.71,141.68,0.79946529]
[1641810544395,3.99732644,141.72,141.68,0.79946529]
[1641810544999,3.99732644,141.72,141.66,0.79946529]
[1641810545696,3.99732644,141.72,141.66,15.73950639]
[1641810546096,3.99732644,141.72,141.67,0.79946529]
[1641810546897,7.99732644,141.72,141.67,0.79946529]
[1641810547596,3.99732644,141.71,141.66,0.79946529]
[1641810547999,3.99732644,141.71,141.68,0.79946529]
[1641810548198,3.99732644,141.71,141.68,10.19346529]
[1641810548399,3.99732644,141.72,141.68,9.394]
[1641810548598,2.0,141.71,141.68,9.394]
[1641810548798,2.0,141.71,141.69,0.79946529]
[1641810550702,2.0,141.71,141.67,0.79946529]
[1641810552804,2.0,141.71,141.68,14.9400411]
[1641810553405,2.0,141.71,141.69,0.79946529]
[1641810554106,2.0,141.71,141.69,6.197]
[1641810554708,2.0,141.71,141.7,0.79946529]
[1641810555107,5.99707288,141.71,141.7,0.79946529]
[1641810555907,2.0,141.71,141.7,0.79946529]
[1641810556707,72.35268046,141.76,141.7,0.79946529]
[1641810556907,6.77238046,141.76,141.7,0.79946529]
[1641810557110,3.99627081,141.75,141.7,0.79946529]
[1641810557311,1.99627081,141.75,141.7,0.79946529]
[1641810557510,1.99627081,141.75,141.71,14.9400411]
[1641810557711,6.77238046,141.76,141.71,14.9400411]
[1641810558511,3.9960717,141.75,141.72,0.79921434]
[1641810558711,3.9960717,141.75,141.72,8.41221434]
[1641810559512,3.9960717,141.75,141.73,0.79921434]
[1641810559812,3.9960717,141.79,141.73,0.79921434]
[1641810560213,3.9960717,141.79,141.73,15.73925544]
[1641810560815,2.0,141.75,141.74,0.79921434]
[1641810563015,2.0,141.75,141.73,0.79921434]
[1641810568923,3.9962173,141.74,141.72,0.79921434]
[1641810569126,2.0,141.75,141.74,0.79921434]
[1641810569726,5.99603581,141.75,141.72,0.79921434]
[1641810570025,2.0,141.75,141.74,0.79921434]
[1641810570426,2.0,141.75,141.72,0.79921434]
[1641810571627,2.0,141.75,141.72,4.79911434]
[1641810571827,2.0,141.75,141.72,6.56111434]
[1641810572128,2.0,141.75,141.73,0.79921434]
[1641810573531,2.0,141.75,141.72,0.79921434]
[1641810573730,9.29,141.75,141.72,0.79921434]
[1641810573930,9.29,141.75,141.74,0.79921434]
[1641810574432,9.29,141.75,141.7,0.79921434]
[1641810575433,9.29,141.75,141.71,2.39770296]
[1641810575835,9.29,141.75,141.72,0.79921434]
[1641810577638,9.29,141.75,141.69,0.79921434]
[1641810578239,9.29,141.75,141.7,3.9999]
[1641810578439,9.29,141.75,141.7,1.762]
[1641810579041,9.29,141.75,141.71,0.79921434]
[1641810579444,9.29,141.75,141.71,3.19801658]
[1641810579743,9.29,141.75,141.72,0.79921434]
[1641810580144,9.29,141.75,141.72,3.19801658]
[1641810580646,9.29,141.75,141.73,0.79921434]
[1641810581049,4.0,141.74,141.73,1.434e-05]
[1641810581250,13.29,141.75,141.73,2.24e-06]
[1641810581450,18.93391373,141.75,141.69,24.65377889]
[1641810582253,9.29,141.75,141.66,14.9400411]
[1641810582450,9.29,141.75,141.7,0.79944758]
[1641810582852,9.29,141.75,141.68,9.17244758]
[1641810583250,9.29,141.75,141.69,0.79944758]
[1641810586456,4.0,141.74,141.69,0.79944758]
[1641810586658,14.93384721,141.75,141.69,0.79944758]
[1641810587057,9.29,141.75,141.69,0.79944758]
[1641810587457,13.29,141.75,141.69,0.79944758]
[1641810587656,4.0,141.73,141.69,0.79944758]
[1641810587857,4.0,141.72,141.69,0.79944758]
[1641810588058,4.0,141.7,141.67,14.9400411]
[1641810588257,4.0,141.69,141.65,9.71373779]
[1641810588458,13.133,141.69,141.65,9.71373779]
[1641810588659,4.0,141.68,141.65,9.71373779]
[1641810588858,4.0,141.68,141.64,39.76667212]
[1641810588859,4.0,141.67,141.61,39.76667212]
[1641810589558,4.0,141.67,141.62,0.79979679]
[1641810589758,3.99898397,141.66,141.62,0.79979679]
[1641810589958,10.47498397,141.66,141.62,0.79979679]
[1641810590257,10.47498397,141.66,141.58,0.79979679]
[1641810590458,10.47498397,141.66,141.63,0.79979679]
[1641810590658,3.99898397,141.65,141.63,0.79979679]
[1641810591059,3.99898397,141.65,141.58,0.79979679]
[1641810591558,3.99898397,141.65,141.58,7.85820512]
[1641810591960,3.99898397,141.65,141.59,0.79979679]
[1641810592560,3.99898397,141.66,141.59,0.79979679]
[1641810601066,9.64772449,141.65,141.59,0.79979679]
[1641810601268,16.42972449,141.65,141.59,0.79979679]
[1641810601967,4.0,141.64,141.59,0.79979679]
[1641810602168,7.9989893,141.64,141.59,0.79979679]
[1641810602567,4.0,141.64,141.59,0.79979679]
[1641810602968,3.9994007,141.63,141.59,0.79979679]
[1641810603368,13.64817581,141.63,141.59,0.79979679]
[1641810604067,4.0,141.6,141.56,0.79979679]
[1641810604268,4.0,141.58,141.56,0.79979679]
[1641810604468,4.0,141.58,141.56,9.679e-05]
[1641810604667,4.0,141.58,141.51,39.76667212]
[1641810604869,4.0,141.58,141.49,110.85221779]
[1641810605570,4.0,141.57,141.49,110.85221779]
[1641810605768,11.668,141.57,141.49,110.85221779]
[1641810606170,11.668,141.57,141.49,71.08554567]
[1641810606770,4.0,141.54,141.49,7.06264567]
[1641810606970,13.004,141.54,141.49,7.06264567]
[1641810608170,9.004,141.54,141.49,7.06264567]
[1641810609370,4.0,141.58,141.49,7.06264567]
[1641810609570,5.65034907,141.59,141.49,14.05264567]
[1641810609972,4.00152762,141.57,141.49,14.05264567]
[1641810610572,13.65274872,141.57,141.49,14.05264567]
[1641810610773,9.6512211,141.57,141.49,14.05264567]
[1641810611074,4.0,141.56,141.49,14.05264567]
[1641810611277,4.00152762,141.56,141.49,14.05264567]
[1641810613977,5.65180358,141.55,141.49,14.05264567]
[1641810614577,9.65180358,141.55,141.49,14.05264567]
[1641810615479,17.52480358,141.55,141.49,14.05264567]
[1641810615680,4.0,141.53,141.49,14.05264567]
[1641810615879,13.52480358,141.55,141.49,14.05264567]
[1641810616080,13.52480358,141.55,141.49,6.99]
[1641810616279,13.52480358,141.55,141.47,9.65915435]
[1641810616680,4.00189074,141.54,141.47,9.65915435]
[1641810616879,8.00189074,141.54,141.46,9.65915435]
[1641810617280,5.65271549,141.53,141.46,9.65915435]
[1641810617481,9.65460623,141.53,141.46,9.65915435]
[1641810617980,5.65271549,141.53,141.46,9.65915435]
[1641810618379,5.65271549,141.53,141.47,3.9999]
[1641810618579,65.5504,141.57,141.47,9.7819]
[1641810618779,65.5504,141.57,141.48,12.82929396]
[1641810619180,4.00125524,141.56,141.48,12.82929396]
[1641810619380,4.00125524,141.56,141.48,8.82939396]
[1641810619581,4.00125524,141.56,141.49,0.80026241]
[1641810619782,9.6528087,141.56,141.5,14.88037102]
[1641810620180,4.00125524,141.55,141.51,0.80026241]
[1641810621281,4.00125524,141.55,141.49,0.80026241]
[1641810621480,12.33925524,141.55,141.49,0.80026241]
[1641810621780,16.33925524,141.55,141.49,0.80026241]
[1641810621980,4.00125524,141.54,141.49,0.80026241]
[1641810622181,8.00125524,141.54,141.49,0.80026241]
[1641810622380,4.0,141.53,141.5,2.39102014]
[1641810622680,4.0,141.53,141.48,14.88037102]
[1641810623280,4.0,141.53,141.45,87.76091249]
[1641810623783,4.00229413,141.52,141.46,4.80035883]
[1641810623979,4.00229413,141.52,141.47,12.82954343]
[1641810624180,4.00229413,141.52,141.47,8.82964343]
[1641810624380,4.00229413,141.56,141.48,0.80045883]
[1641810624981,4.00229413,141.56,141.49,14.88037102]
[1641810625582,4.0,141.53,141.49,14.88037102]
[1641810625782,9.65288162,141.53,141.5,0.80045883]
[1641810625982,5.65288162,141.53,141.5,0.80045883]
[1641810626185,4.00229413,141.52,141.5,0.80045883]
[1641810627485,4.00229413,141.53,141.48,0.80045883]
[1641810627685,4.00229413,141.53,141.48,15.68082985]
[1641810627985,6.78200264,141.56,141.51,0.80045883]
[1641810628187,6.78200264,141.56,141.51,7.664]
[1641810628385,64.37,141.58,141.51,7.664]
[1641810628785,4.00132593,141.55,141.52,0.80045883]
[1641810629186,64.37,141.58,141.51,7.664]
[1641810629585,64.37,141.58,141.52,0.80024566]
[1641810629784,4.00122828,141.57,141.52,0.80024566]
[1641810630586,66.1809,141.6,141.52,0.80024566]
[1641810631486,4.00074622,141.59,141.53,14.88037102]
[1641810631787,4.00074622,141.59,141.54,0.80024566]
[1641810633188,4.0,141.57,141.54,0.80024566]
[1641810633789,4.00074622,141.56,141.54,0.80024566]
[1641810635091,4.00074622,141.57,141.54,0.80024566]
[1641810635292,8.00074622,141.57,141.54,0.80024566]
[1641810635893,4.00074622,141.56,141.53,0.80024566]
[1641810638595,6.00074622,141.56,141.53,0.80024566]
[1641810638896,2.0,141.56,141.53,0.80024566]
[1641810639297,9.772,141.56,141.53,0.80024566]
[1641810639596,9.772,141.56,141.53,15.68061668]
[1641810640297,9.772,141.56,141.54,0.80024566]
[1641810641097,9.772,141.56,141.53,0.80024566]
[1641810643198,13.772,141.56,141.53,0.80024566]
[1641810644899,9.772,141.56,141.53,0.80024566]
[1641810652102,9.772,141.56,141.53,15.68061668]
[1641810652807,9.772,141.56,141.54,0.80024566]
[1641810653004,5.65173172,141.55,141.54,0.80024566]
[1641810653404,9.65343479,141.55,141.54,0.80024566]
[1641810653603,9.65343479,141.55,141.5,64.15196605]
[1641810653806,13.65343479,141.55,141.52,14.97639757]
[1641810654102,5.65236615,141.54,141.52,14.97639757]
[1641810654303,9.65236615,141.54,141.52,14.97639757]
[1641810654503,9.65236615,141.54,141.49,69.269]
[1641810654504,4.0,141.53,141.49,69.269]
[1641810654703,7.206,141.53,141.47,39.76667212]
[1641810654904,5.65306646,141.52,141.47,39.76667212]
[1641810655104,9.65573788,141.52,141.5,0.80053428]
[1641810655505,5.65306646,141.52,141.48,0.80053428]
[1641810659407,10.78253684,141.54,141.48,0.80053428]
[1641810659611,6.78253684,141.54,141.48,0.80053428]
[1641810659811,4.00250533,141.53,141.48,0.80053428]
[1641810661017,4.00250533,141.54,141.48,0.80053428]
[1641810661314,4.00250533,141.54,141.48,7.97353428]
[1641810661516,67.1825,141.55,141.48,7.97353428]
[1641810661715,71.1825,141.55,141.48,7.97353428]
[1641810661915,71.1825,141.55,141.49,0.80053428]
[1641810662415,4.00218622,141.54,141.49,0.80053428]
[1641810662817,4.00218622,141.54,141.5,2.40225844]
[1641810663016,67.1825,141.55,141.5,2.40225844]
[1641810663318,67.1825,141.55,141.51,0.80053428]
[1641810663517,2.0,141.56,141.51,6.62753428]
[1641810664120,2.0,141.56,141.52,2.40225844]
[1641810664319,4.00196175,141.55,141.52,3.20279272]
[1641810664719,4.00196175,141.55,141.53,0.80053428]
[1641810665018,4.00196175,141.55,141.53,3.20279272]
[1641810665418,2.0,141.56,141.54,0.80053428]
[1641810665619,2.0,141.56,141.54,9.04153428]
[1641810666018,2.0,141.56,141.54,11.44379272]
[1641810666418,2.0,141.56,141.55,0.80053428]
[1641810667020,2.0,141.56,141.55,3.20279272]
[1641810669122,0.0001,141.56,141.55,3.20279272]
[1641810669321,8.13489766,141.62,141.55,3.20279272]
[1641810669520,6.7778412,141.64,141.55,3.20279272]
[1641810669721,67.2194,141.67,141.56,7.05915572]
[1641810669922,4.0,141.66,141.57,3.9999]
[1641810670123,7.99980812,141.66,141.57,13.22943428]
[1641810670421,3.99980812,141.66,141.57,13.22943428]
[1641810670621,3.99980812,141.65,141.58,0.80053428]
[1641810671021,3.99980812,141.65,141.58,3.20279272]
[1641810671422,3.99980812,141.66,141.59,0.80053428]
[1641810672026,3.99980812,141.66,141.6,2.40225844]
[1641810672325,3.99980812,141.66,141.6,8.94225844]
[1641810672724,3.99980812,141.66,141.61,0.80053428]
[1641810673124,5.99980812,141.66,141.61,0.80053428]
[1641810673624,68.9161,141.73,141.63,7.05591815]
[1641810673824,72.9161,141.73,141.64,67.2619]
[1641810674024,70.9162,141.73,141.64,67.2619]
[1641810674226,66.9162,141.73,141.64,67.2619]
[1641810674527,70.9162,141.73,141.64,67.2619]
[1641810674926,4.0,141.71,141.65,0.79968816]
[1641810675228,13.64355219,141.72,141.65,0.79968816]
[1641810675427,3.99844082,141.7,141.65,0.79968816]
[1641810676528,3.99844082,141.71,141.65,0.79968816]
[1641810676831,3.99844082,141.69,141.65,7.99668816]
[1641810677329,3.99844082,141.71,141.66,0.79968816]
[1641810677529,5.99844082,141.71,141.66,0.79968816]
[1641810678229,3.99844082,141.7,141.66,0.79968816]
[1641810682335,3.99844082,141.7,141.66,4.79958816]
[1641810682536,2.0,141.71,141.67,3.9999]
[1641810682736,2.0,141.71,141.68,1.764]
[1641810682937,5.64327729,141.77,141.68,7.864]
[1641810683136,63.0702,141.78,141.69,11.05283226]
[1641810683337,61.0703,141.78,141.71,3.9999]
[1641810683536,61.0703,141.78,141.71,10.1739]
[1641810683736,62.7783,141.82,141.71,10.1739]
[1641810683737,3.99671636,141.77,141.71,10.1739]
[1641810684138,3.99671636,141.77,141.72,1.50394253]
[1641810684538,3.99671636,141.81,141.72,1.50394253]
[1641810684740,3.99671636,141.81,141.72,3.26594253]
[1641810685439,3.99671636,141.81,141.73,1.50394253]
[1641810685838,3.99671636,141.81,141.74,1.50394253]
[1641810686238,4.0,141.8,141.75,1.50394253]
[1641810686539,3.99671636,141.81,141.75,1.50394253]
[1641810686540,7.99671636,141.81,141.75,1.50394253]
[1641810686739,3.99671636,141.79,141.76,1.50394253]
[1641810686937,3.99671636,141.79,141.7,1.762]
[1641810686938,0.49605747,141.71,141.7,1.762]
[1641810687138,0.49605747,141.71,141.69,101.06293226]
[1641810687139,0.49605747,141.71,141.69,68.24583226]
[1641810687537,4.0,141.76,141.69,7.05293226]
[1641810687937,3.504,141.75,141.7,0.496]
[1641810688138,3.504,141.76,141.7,0.496]
[1641810688537,3.99640038,141.74,141.71,0.79928008]
[1641810688938,3.99640038,141.75,141.71,0.79928008]
[1641810689338,3.99640038,141.76,141.7,1.29528008]
[1641810689738,3.99640038,141.76,141.71,0.79928008]
[1641810690339,13.14380625,141.76,141.71,0.79928008]
[1641810690938,3.99640038,141.75,141.68,0.79928008]
[1641810691339,3.99640038,141.75,141.67,0.496]
[1641810691537,3.99640038,141.75,141.66,0.79928008]
[1641810691738,3.99640038,141.75,141.66,2.56328008]
[1641810691939,3.99640038,141.75,141.68,7.85246106]
[1641810692138,3.99640038,141.75,141.72,0.496]
[1641810692338,3.99640038,141.75,141.72,7.787]
[1641810692739,3.99640038,141.75,141.73,0.79928008]
[1641810693240,3.99640038,141.75,141.73,1.29528008]
[1641810693538,3.99640038,141.75,141.73,0.79928008]
[1641810697242,13.14432851,141.75,141.68,62.3526]
[1641810697442,5.64468812,141.73,141.68,0.496]
[1641810697642,5.64468812,141.73,141.65,57.9447]
[1641810697844,5.64468812,141.73,141.69,1.72411404]
[1641810698042,5.64468812,141.73,141.7,0.496]
[1641810698242,3.99640038,141.72,141.7,1.22811404]
[1641810698642,3.99640038,141.72,141.69,1.72411404]
[1641810699043,3.99640038,141.72,141.69,1.22811404]
[1641810699343,3.99640038,141.72,141.71,0.496]
[1641810699543,3.99640038,141.72,141.71,7.277]
[1641810699943,3.99640038,141.72,141.71,6.781]
[1641810700945,3.99640038,141.72,141.71,7.277]
[1641810701447,3.99640038,141.72,141.71,6.781]
[1641810702047,3.99640038,141.72,141.71,8.00883167]
[1641810702347,3.99640038,141.72,141.71,8.50483167]
[1641810705352,0.00010038,141.72,141.71,10.89989311]
[1641810705851,0.00010038,141.73,141.71,10.89989311]
[1641810706049,0.00010038,141.73,141.72,0.496]
[1641810706552,60.63440038,141.77,141.72,0.496]
[1641810706750,60.63440038,141.77,141.74,0.496]
[1641810707152,3.99547147,141.76,141.75,2.06621441]
[1641810708152,3.99547147,141.76,141.69,66.47828355]
[1641810708153,2.57970995,141.76,141.69,66.47828355]
[1641810708351,2.57970995,141.76,141.71,0.496]
[1641810709153,2.57970995,141.76,141.69,59.4256]
[1641810709553,3.99594016,141.75,141.7,1.63278563]
[1641810709952,3.99594016,141.75,141.7,4.02938788]
[1641810710356,3.99594016,141.75,141.71,0.496]
[1641810710554,5.99594016,141.76,141.71,2.12878563]
[1641810710756,5.99594016,141.76,141.71,4.52538788]
[1641810710954,3.99594016,141.74,141.71,4.02938788]
[1641810711155,3.99594016,141.74,141.73,0.496]
[1641810711355,3.99594016,141.75,141.73,0.496]
[1641810711755,3.99594016,141.75,141.74,1.63278563]
[1641810712856,6.57832399,141.75,141.69,59.4256]
[1641810713056,6.57832399,141.75,141.72,0.496]
[1641810713357,3.99594016,141.74,141.7,2.04628248]
[1641810713755,3.99594016,141.74,141.73,2.04628248]
[1641810714155,3.99594016,141.75,141.72,6.451]
[1641810715057,3.99594016,141.75,141.73,2.04617057]
[1641810716061,3.99594016,141.75,141.73,2.54217057]
[1641810716458,3.99594016,141.75,141.73,2.04617057]
[1641810716658,3.99594016,141.75,141.74,0.496]
[1641810716860,3.99594016,141.75,141.74,8.488]
[1641810717158,6.58051756,141.75,141.74,8.488]
[1641810717359,6.58051756,141.75,141.74,10.12064827]
[1641810718160,3.99594016,141.75,141.74,10.12064827]
[1641810718862,3.99594016,141.75,141.74,10.61664827]
[1641810719361,3.99594016,141.75,141.74,10.12064827]
[1641810720962,3.99594016,141.75,141.74,10.61664827]
[1641810721964,4.016e-05,141.75,141.74,10.61664827]
[1641810722165,2.0,141.76,141.74,10.61664827]
[1641810722365,2.0,141.76,141.75,0.496]
[1641810722566,2.0,141.76,141.74,4.03238155]
[1641810722768,2.0,141.76,141.74,2.39973328]
[1641810722966,2.0,141.76,141.74,2.89573328]
[1641810723167,2.0,141.76,141.75,2.47137187]
[1641810723877,5.504,141.76,141.75,2.47137187]
[1641810724071,2.0,141.76,141.73,7.187e-05]
[1641810724271,13.47,141.76,141.73,7.187e-05]
[1641810724471,3.504,141.75,141.69,15.29414677]
[1641810724872,6.08661037,141.75,141.69,0.496]
[1641810725370,3.504,141.74,141.7,1.95353361]
[1641810725571,2.58261037,141.75,141.7,2.44953361]
[1641810725772,2.58261037,141.74,141.7,2.44953361]
[1641810726174,2.58261037,141.74,141.71,1.95353361]
[1641810726574,2.58261037,141.75,141.71,1.95353361]
[1641810726774,2.58261037,141.75,141.71,2.44953361]
[1641810727377,2.58261037,141.75,141.71,1.95353361]
[1641810727776,2.58261037,141.75,141.72,1.95353361]
[1641810728075,2.58261037,141.75,141.72,7.97453361]
[1641810728276,2.58261037,141.75,141.72,6.021]
[1641810728677,4.58261037,141.75,141.73,1.95353361]
[1641810729679,2.0,141.75,141.73,1.95353361]
[1641810730079,2.0,141.75,141.71,0.496]
[1641810730479,2.0,141.75,141.72,1.95353361]
[1641810730979,2.0,141.75,141.71,0.496]
[1641810731181,2.5838347,141.74,141.71,0.496]
[1641810731383,2.5838347,141.74,141.72,1.95353361]
[1641810734387,3.504,141.73,141.68,24.52424312]
[1641810734587,3.504,141.71,141.68,4.312e-05]
[1641810734787,10.575,141.71,141.68,4.312e-05]
[1641810734988,9.14988462,141.7,141.68,4.312e-05]
[1641810735287,5.64588462,141.7,141.68,4.312e-05]
[1641810735689,5.64588462,141.7,141.65,39.76667212]
[1641810735888,5.64588462,141.7,141.66,1.54388519]
[1641810736287,5.64588462,141.7,141.67,0.496]
[1641810736490,67.29530909,141.73,141.67,0.496]
[1641810736689,3.504,141.72,141.67,0.496]
[1641810736989,3.504,141.72,141.68,1.54388519]
[1641810737391,3.504,141.71,141.68,1.54388519]
[1641810737890,2.58481423,141.71,141.68,1.54388519]
[1641810738390,3.99710547,141.7,141.66,0.496]
[1641810738591,3.99710547,141.7,141.69,0.496]
[1641810738792,3.99710547,141.7,141.69,8.977]
[1641810739192,3.99710547,141.7,141.69,10.52088519]
[1641810739792,67.111,141.75,141.69,10.52088519]
[1641810740392,67.111,141.75,141.7,2.3962296]
[1641810740593,5.504,141.75,141.7,2.3962296]
[1641810740793,3.99614415,141.74,141.71,1.54388519]
[1641810741394,7.50014415,141.74,141.71,1.54388519]
[1641810741997,3.99614415,141.73,141.71,1.54388519]
[1641810742697,3.99614415,141.73,141.7,1.54388519]
[1641810742897,3.99614415,141.73,141.72,1.54388519]
[1641810743398,3.99614415,141.74,141.7,1.54388519]
[1641810751604,3.504,141.73,141.7,1.54388519]
[1641810751805,15.45892783,141.73,141.7,1.54388519]
[1641810752005,5.64523316,141.72,141.7,1.54388519]
[1641810752205,13.14537731,141.72,141.69,1.54388519]
[1641810752406,12.22527582,141.72,141.69,1.54388519]
[1641810752605,3.99614415,141.71,141.66,0.496]
[1641810753106,3.99614415,141.71,141.67,1.54361571]
[1641810753306,3.99614415,141.71,141.67,3.94193344]
[1641810754006,3.99614415,141.71,141.68,3.94193344]
[1641810754205,7.50014415,141.71,141.68,3.94193344]
[1641810754407,5.64584279,141.7,141.69,1.54361571]
[1641810755008,9.64198694,141.7,141.69,1.54361571]
[1641810755408,9.64198694,141.7,141.66,1.54361571]
[1641810755809,3.99614415,141.69,141.66,1.54361571]
[1641810757618,3.99614415,141.69,141.66,2.03961571]
[1641810757913,3.99614415,141.69,141.67,1.54361571]
[1641810758113,3.99614415,141.69,141.67,3.94164859]
[1641810758518,3.99614415,141.69,141.68,0.496]
[1641810758914,3.99614415,141.69,141.68,1.54361571]
[1641810759317,3.99614415,141.7,141.67,1.54361571]
[1641810759718,3.99614415,141.7,141.68,0.496]
[1641810760117,3.99614415,141.7,141.69,1.54361571]
[1641810761017,3.99614415,141.7,141.67,0.496]
[1641810761220,3.99614415,141.7,141.66,0.496]
[1641810761420,3.99614415,141.7,141.65,7.05467372]
[1641810761619,3.99614415,141.7,141.66,0.496]
[1641810761819,3.99614415,141.7,141.66,2.89377133]
[1641810762321,7.50014415,141.7,141.66,2.89377133]
[1641810762520,7.50014415,141.7,141.66,2.39777133]
[1641810762720,3.99614415,141.7,141.67,3.77174983]
[1641810763020,3.99614415,141.69,141.67,3.77174983]
[1641810763222,3.99614415,141.69,141.68,1.3739785]
[1641810763721,3.99614415,141.7,141.68,1.3739785]
[1641810763921,3.99614415,141.7,141.68,7.2509785]
[1641810764121,3.99614415,141.7,141.68,5.877]
[1641810764624,3.99614415,141.7,141.69,1.3739785]